[Event "26th Womens ECCC 2022"]
[Site "Mayrhofen"]
[Date "2022.10.08"]
[Round "6.14"]
[White "Unuk, Laura"]
[Black "Gaponenko, Inna"]
[Result "1/2-1/2"]
[ECO "D20"]
[WhiteElo "2297"]
[BlackElo "2348"]
[Annotator "TA"]
[PlyCount "89"]
[EventDate "2022.10.03"]
[EventType "team-tourn"]
[EventCountry "AUT"]
[SourceTitle "playchess.com"]
[Source "ChessBase"]
[SourceQuality "1"]
[TimeControl "40/5400+30:1800+30"]

{[%evp 17,89,38,31,41,34,52,53,5,20,14,36,26,32,31,43,36,32,33,31,0,0,0,14,16,4,0,0,0,0,0,0,0,1,0,0,0,0,0,-6,-37,-39,-29,-44,-51,-64,-76,-37,-30,-38,-87,0,-70,0,0,0,-77,-72,-71,0,-312,-73,-78,0,0,0,0,0,0,0,0,0,0,0,0]} 1. d4 {[%emt 0:00:04] Fischer,J} d5 {[%emt 0:00:04]} 2. c4 {[%emt 0:00:36]} dxc4 {[%emt 0:00:05]} 3. e4 {[%emt 0:00:59][%cal Be2e4,Be4e5][%mdl 32]} Nf6 {[%emt 0:00:47][%cal Bg8f6,Bf6d5,Bd5b6][%mdl 32]} 4. e5 {[%emt 0:04:35]} Nd5 {[%emt 0:00:05]} 5. Bxc4 {[%emt 0:00:33]} Nb6 {[%emt 0:00:08]} 6. Bd3 {[%emt 0:00:30]} Nc6 {[%emt 0:00:20]} 7. Ne2 {[%emt 0:03:37]} Bg4 {[%emt 0:00:49]} 8. f3 {[%emt 0:06:16]} Be6 {[%emt 0:00:20]} 9. Nbc3 {[%emt 0:03:08][%cal Bb1c3,Bc3e4,Be4c5][%mdl 32]} Qd7 {[%emt 0:01:37] 9...Bc4 is vanishing.} (9... Nxd4 $2 10. Nxd4 Qd7 11. Be3 $18) 10. Ne4 {[%emt 0:14:46] D20: Queen's Gambit Accepted: 3 e3 and 3 e4.} Bd5 {[%emt 0:00:30]} (10... Nxd4 $2 11. Nxd4 Rd8 12. Be3 $18) 11. Nc5 {[%emt 0:01:19][%csl LRb7,LRd7]} Qc8 {[%emt 0:00:13]} 12. Bg5 {[%emt 0:11:57] [#]} (12. a3 $14 {is superior.}) 12... e6 $146 {[%emt 0:26:19][%cal Oc6d4]} (12... f6 $5 {[%cal Rf6g5]} 13. Bf4 fxe5 14. dxe5 (14. Bxe5 Nxe5 15. dxe5 e6 $11) 14... e6 $11) ({Predecessor:} 12... f6 13. Bh4 fxe5 14. O-O exd4 15. Nf4 Bf7 16. Rc1 e5 17. Nxb7 Nb8 18. Re1 N8d7 19. Ba6 c5 20. Bb5 Qc7 21. Nd3 Nc4 22. Rxc4 {1-0 (22) Hammer,J (2695)-Blomqvist,E (2493) Stockholm 2015 CBM 170 Extra [Fischer,J]}) 13. Qc1 {[%emt 0:00:58]} Bxc5 {[%emt 0:02:14]} 14. Qxc5 {[%emt 0:01:53]} Qd7 {[%emt 0:00:11]} 15. O-O {[%emt 0:01:40]} h6 {[%emt 0:07:44]} 16. Bh4 {[%emt 0:06:13]} g5 {[%emt 0:00:32]} 17. Bf2 {[%emt 0:00:05]} Qe7 {[%emt 0:00:08]} 18. Rfc1 {[%emt 0:05:32]} Qxc5 {[%emt 0:01:51]} 19. Rxc5 {[%emt 0:00:17]} (19. dxc5 Nd7 $15) 19... Nb4 {[%emt 0:22:12][%csl LRa2,LRd3]} 20. Be4 {[%emt 0:06:07]} c6 {[%emt 0:03:48]} 21. Be1 {[%emt 0:06:48]} Bxe4 {[%emt 0:04:02]} 22. fxe4 {[%emt 0:01:21]} Nd3 {[%emt 0:00:07][%csl LRb2,LRc5]} 23. Rc3 {[%emt 0:00:25]} Nxe1 {[%emt 0:11:26]} 24. Rxe1 {[%emt 0:00:02]} O-O {[%emt 0:00:15]} 25. h4 {[%emt 0:05:05]} gxh4 {[%emt 0:04:18]} 26. Rf1 {[%emt 0:01:47]} Nd7 {[%emt 0:01:52][%cal Oc6c5]} 27. Rf4 {[%emt 0:03:52]} c5 {[%emt 0:00:40]} 28. dxc5 {[%emt 0:01:21]} Nxe5 {[%emt 0:00:27]} 29. Rxh4 {[%emt 0:00:19]} Rad8 {[%emt 0:08:54]} 30. Rg3+ {[%emt 0:00:29]} (30. Rxh6 $2 Ng4 31. Ng3 Rd1+ 32. Nf1 Nxh6 $19) 30... Kh7 {[%emt 0:00:53]} 31. Nf4 {[%emt 0:03:21]} Rd1+ {[%emt 0:00:26]} (31... Rg8 $5 {[%cal Rg8g3]} 32. Rb3 Rd2 $17) 32. Kh2 {[%emt 0:00:10]} Rd2 {[%emt 0:02:09]} 33. Rgh3 {[%emt 0:02:00] [#]} (33. Nh5 $15 Ng6 34. Nf6+ Kg7 35. Rf4 (35. e5 Rxb2 36. Ra4 Rc8 $17)) 33... Kg7 {[%emt 0:00:10]} (33... Rg8 $1 $17 {And now ...Ng4+ would win.} 34. Rxh6+ Kg7) 34. Nh5+ {[%emt 0:02:49]} (34. Rg3+ $11 Kh7 35. Nh5) 34... Kh7 {[%emt 0:00:43]} (34... Kh8 $15 35. Rb3 (35. Nf6 Rxb2 36. Ng4 Nxg4+ 37. Rxg4 Kh7 $17) 35... Rc8) 35. Nf6+ {[%emt 0:00:58]} Kg7 {[%emt 0:00:03]} (35... Kg6 $11 36. Rf4 (36. Rxh6+ Kg7 $17) 36... Kg7) 36. Nh5+ $17 {[%emt 0:02:29]} (36. Rxh6 $2 Rxb2 37. Nh7 Ng4+ 38. Kg3 Nxh6 $19) 36... Kh8 {[%emt 0:01:07]} 37. Nf6 {[%emt 0:00:16] Against Rg8} Kg7 {[%emt 0:00:03]} ({Better is} 37... Rxb2 $17 38. a3 (38. Rxh6+ $2 Kg7 $19) 38... Rc2) 38. Rxh6 $2 {[%emt 0:01:30][%mdl 8192]} (38. Nh5+ $11 Kh8 39. Nf4 (39. Nf6 Rxb2 40. Ng4 Nxg4+ 41. Rxg4 Kh7 $17)) 38... Rf2 $2 {[%emt 0:00:36]} (38... Rc8 $19 {is more deadly.} 39. b3 Rxa2) 39. Kg3 {[%emt 0:01:57]} Rxf6 {[%emt 0:00:20]} (39... Rf1 $17 {...Rd8 is the strong threat.} 40. Ng4 Nxg4 41. Kxg4 Rg8) 40. Rh7+ $11 {[%emt 0:00:06] The position is equal.} Kg8 {[%emt 0:01:24]} 41. Rh8+ {[%emt 0:31:19]} Kg7 {[%emt 0:30:01]} 42. R3h7+ {[%emt 0:00:00]} Kg6 {[%emt 0:00:00] [#] Strongly threatening ...Rxh8.} 43. Rh6+ {[%emt 0:00:00]} Kg7 {[%emt 0:00:00]} (43... Kg5 $5 44. Rh5+ $8 Kg6 45. R5h6+ Kg7 46. R8h7+ Kg8 47. Rh8+ Kg7 48. R8h7+ Kg8 49. Rh8+ Kg7 $11) 44. R6h7+ {[%emt 0:00:00]} Kg6 {[%emt 0:00:00] Hoping for ...Rxh8.} 45. Rh6+ {[%emt 0:00:00] Weighted Error Value: White=0.26 (precise) /Black=0.25 (precise)} 1/2-1/2

[Event "26th Womens ECCC 2022"]
[Site "Mayrhofen"]
[Date "2022.10.08"]
[Round "6.15"]
[White "Doluhanova, Evgeniya"]
[Black "Urh, Zala"]
[Result "1-0"]
[ECO "A16"]
[WhiteElo "2264"]
[BlackElo "2221"]
[Annotator "TA"]
[PlyCount "61"]
[EventDate "2022.10.03"]
[EventType "team-tourn"]
[EventCountry "AUT"]
[SourceTitle "playchess.com"]
[Source "ChessBase"]
[SourceQuality "1"]
[TimeControl "40/5400+30:1800+30"]

{[%evp 9,61,-19,-28,-18,-6,-2,-18,-16,0,-22,22,24,41,20,17,9,11,20,45,48,68,61,69,68,74,76,83,87,116,106,105,102,189,131,122,118,316,336,335,318,622,620,662,667,776,785,717,749,820,834,1336,1118,894,702]} 1. c4 {[%emt 0:00:33]} Nf6 {[%emt 0:00:07]} 2. Nc3 {[%emt 0:00:19]} e5 {[%emt 0:00:08]} 3. a3 {[%emt 0:03:44]} d5 {[%emt 0:06:31]} 4. cxd5 {[%emt 0:01:20]} Nxd5 {[%emt 0:00:06]} 5. Qb3 {[%emt 0:06:32]} Nb6 {[%emt 0:02:03]} 6. Nf3 {[%emt 0:01:04] A22: English Opening: 1...e5 2 Nc3 Nf6.} Nc6 {[%emt 0:02:20]} 7. e3 {[%emt 0:00:18] Inhibits Nd4.} Be6 {[%emt 0:05:36]} 8. Qc2 {[%emt 0:00:09] The position is equal.} ({But not} 8. Qb5 a6 9. Qd3 Qe7 $17) 8... a6 {[%emt 0:07:40] Inhibits Bb5.} 9. b4 {[%emt 0:02:00] [#]} Qd7 $146 {[%emt 0:07:36]} (9... f5 $5 {[%cal Re5e4]}) ({Predecessor:} 9... Nc4 10. d3 Nd6 11. Na4 Nb5 12. Nc5 Bxc5 13. Qxc5 Qd5 14. Bb2 f6 15. Qxd5 Bxd5 {1-0 (68) Korenchuk,A (2124)-Denisov,D (1934) Nalchik 2016}) 10. Ne4 {[%emt 0:02:31]} f6 {[%emt 0:08:24]} 11. Nc5 {[%emt 0:02:43]} Bxc5 {[%emt 0:00:58]} 12. bxc5 {[%emt 0:00:51]} Nd5 {[%emt 0:00:58]} 13. Rb1 {[%emt 0:07:26]} b5 {[%emt 0:13:52]} 14. cxb6 $1 {[%emt 0:05:48]} Nxb6 {[%emt 0:02:06]} 15. Bb2 {[%emt 0:10:17]} Ne7 {[%emt 0:11:15]} 16. Be2 {[%emt 0:12:48]} O-O {[%emt 0:04:19]} 17. O-O {[%emt 0:00:33]} Rfc8 {[%emt 0:05:53]} 18. Rfc1 {[%emt 0:03:18]} Ba2 {[%emt 0:09:27]} 19. Ra1 {[%emt 0:01:32]} Bd5 {[%emt 0:00:07]} 20. a4 {[%emt 0:04:17] e4 is the strong threat.} Qe6 {[%emt 0:03:15] [#]} (20... Qe8 $16 {was necessary.}) 21. a5 {[%emt 0:02:20]} (21. e4 $1 $18 {[%cal Re4d5]}) 21... Nd7 $16 {[%emt 0:02:01]} 22. Ra3 {[%emt 0:20:19] Black must now prevent e4. White is more active.} Qf7 $2 {[%emt 0:00:32] Black cannot hold the game after this.} (22... Qc6 $16) 23. e4 $18 {[%emt 0:00:32]} Be6 {[%emt 0:00:13]} 24. d4 {[%emt 0:00:20]} Qf8 $2 {[%emt 0:06:07]} (24... exd4 25. Nxd4 Kh8) 25. dxe5 {[%emt 0:01:26] White is clearly winning.} Nxe5 {[%emt 0:00:10]} 26. Bxe5 {[%emt 0:01:04]} fxe5 {[%emt 0:00:16]} 27. Ng5 {[%emt 0:00:38]} Ng6 {[%emt 0:01:27]} 28. Rf3 {[%emt 0:00:39]} Qb4 {[%emt 0:00:23]} 29. Nxe6 {[%emt 0:00:20]} Qxa5 {[%emt 0:00:20]} 30. Bc4 {[%emt 0:00:42] [#] Nf8+ would kill now.} Kh8 {[%emt 0:00:04]} 31. Rg3 {[%emt 0:02:08] Weighted Error Value: White=0.07 (flawless) /Black=0.39} 1-0

[Event "26th Womens ECCC 2022"]
[Site "Mayrhofen"]
[Date "2022.10.08"]
[Round "6.16"]
[White "Vidic, Teja"]
[Black "Tarleva, Diana"]
[Result "1/2-1/2"]
[ECO "C11"]
[WhiteElo "2126"]
[BlackElo "2175"]
[Annotator "TA"]
[PlyCount "62"]
[EventDate "2022.10.03"]
[EventType "team-tourn"]
[EventCountry "AUT"]
[SourceTitle "playchess.com"]
[Source "ChessBase"]
[SourceQuality "1"]
[TimeControl "40/5400+30:1800+30"]

{[%evp 19,62,0,-16,-82,-11,-35,-34,-39,-34,-59,0,0,0,-15,-15,-19,52,26,19,14,24,25,33,24,52,14,78,32,23,31,59,0,0,0,0,0,0,0,0,0,0,-58,-21,-10,-17]} 1. e4 {[%emt 0:00:02]} e6 {[%emt 0:00:44]} 2. d4 {[%emt 0:00:04]} d5 {[%emt 0:00:05]} 3. Nc3 {[%emt 0:00:04]} Nf6 {[%emt 0:01:10]} 4. e5 {[%emt 0:00:05]} Nfd7 {[%emt 0:00:07]} 5. f4 {[%emt 0:00:05]} c5 {[%emt 0:00:06]} 6. Nf3 {[%emt 0:00:06]} Nc6 {[%emt 0:00:07]} 7. Be3 {[%emt 0:00:05]} a6 {[%emt 0:00:03]} 8. Qd2 {[%emt 0:00:15]} b5 {[%emt 0:00:07][%cal Bb7b5,Bb5b4,Bb4b3][%mdl 32]} 9. dxc5 {[%emt 0:03:35]} Bxc5 {[%emt 0:05:11]} 10. Bxc5 {[%emt 0:06:52]} Nxc5 {[%emt 0:00:10]} 11. O-O-O {[%emt 0:00:14] C11: French: Classical System: 4 e5 and 4 Bg5 dxe4.} (11. Bd3 $11) 11... Qa5 {[%emt 0:16:45]} (11... Qb6 $17 {aiming for ...b4.} 12. Bd3 O-O) 12. Nd4 {[%emt 0:13:37]} Nxd4 {[%emt 0:14:32]} 13. Qxd4 {[%emt 0:00:10] Black is slightly better.} b4 {[%emt 0:00:07]} 14. Nb5 {[%emt 0:14:09]} axb5 {[%emt 0:10:23]} (14... Nb7 $15 15. Nd6+ Nxd6 16. exd6 O-O) 15. Qxc5 $11 {[%emt 0:00:15]} Bd7 {[%emt 0:00:05] [#]} 16. Rd4 $146 {[%emt 0:06:57]} ({Predecessor:} 16. f5 Rc8 17. Qd6 b3 18. axb3 Qa1+ 19. Kd2 Qxb2 20. Bd3 Qc3+ 21. Ke2 exf5 22. Ra1 {½-½ (67) Danielmeier,R-Tucholke,H Germany 1996}) 16... b3 {[%emt 0:00:26]} ({But not} 16... Qxa2 17. Bxb5 Bxb5 18. Qxb5+ Kf8 19. Qxb4+ Kg8 20. Kd2 $11) 17. a3 {[%emt 0:03:29]} Qe1+ {[%emt 0:21:48]} (17... Rc8 $5 {[%cal Rc8c5]} 18. Qb4 Rxc2+ 19. Kb1 Qb6 $11) 18. Rd1 {[%emt 0:00:10]} Qe4 {[%emt 0:02:30] Hoping for ...Rc8.} 19. Bxb5 {[%emt 0:06:15]} Qxf4+ {[%emt 0:01:58]} 20. Rd2 {[%emt 0:02:56] Strongly threatening Rf1.} Rd8 {[%emt 0:10:02]} 21. cxb3 {[%emt 0:14:56]} Qxe5 {[%emt 0:01:29]} 22. Rf1 {[%emt 0:03:10]} Qg5 {[%emt 0:03:59]} (22... f5 $11 {keeps the balance.}) 23. Re1 {[%emt 0:05:13] White has more active pieces. The black rooks are badly placed.} (23. b4 $16) 23... Bxb5 $14 {[%emt 0:04:57]} 24. Qxb5+ {[%emt 0:00:05]} Rd7 {[%emt 0:00:03]} 25. Ree2 {[%emt 0:04:04]} ({White should try} 25. b4 $14) 25... Qf4 $11 {[%emt 0:01:02]} 26. Kb1 {[%emt 0:03:19]} Qd6 {[%emt 0:00:13]} 27. Rc2 {[%emt 0:00:53]} O-O {[%emt 0:00:10]} 28. Rc6 {[%emt 0:00:16]} Qe7 {[%emt 0:01:20]} ({Don't play} 28... Qxh2 {[#]} 29. Rcxe6 $1 Qc7 30. Re8 $16) 29. b4 {[%emt 0:00:25]} d4 {[%emt 0:00:18][%cal Bd5d4,Bd4d3][%mdl 32]} 30. Qe5 {[%emt 0:02:12]} (30. Rc5 $11) 30... d3 {[%emt 0:01:51]} 31. Rd2 {[%emt 0:00:04]} Rd5 {[%emt 0:00:28] Weighted Error Value: White=0.22 (precise) /Black=0.22 (precise)} 1/2-1/2

[Event "26th Womens ECCC 2022"]
[Site "Mayrhofen"]
[Date "2022.10.08"]
[Round "6.17"]
[White "Roebers, Eline"]
[Black "Rakhmangulova, Anastasiya"]
[Result "1-0"]
[ECO "B90"]
[WhiteElo "2352"]
[BlackElo "2261"]
[Annotator "TA"]
[PlyCount "150"]
[EventDate "2022.10.03"]
[EventType "team-tourn"]
[EventCountry "AUT"]
[SourceTitle "playchess.com"]
[Source "ChessBase"]
[SourceQuality "1"]
[TimeControl "40/5400+30:1800+30"]

{[%evp 9,150,21,22,1,9,20,29,22,19,16,39,40,37,41,41,2,6,8,22,0,23,26,21,29,27,25,36,41,43,0,0,0,11,20,27,0,37,18,23,16,25,29,20,30,8,0,0,0,0,0,12,-12,-12,-14,-16,-25,0,0,0,0,0,-50,-22,-33,-12,-22,-7,-46,0,0,0,0,0,0,0,0,310,321,318,319,308,290,297,296,289,289,289,289,289,289,289,264,342,335,335,242,235,235,337,294,351,333,472,472,472,472,472,471,472,421,469,464,400,386,369,329,288,277,391,391,398,385,384,377,29967,29968,29967,29969,29969,29968,29969,29966,29976,29977,29977,29976,29976,29977,29977,29978,29978,29979,29978]} 1. e4 {[%emt 0:00:03]} c5 {[%emt 0:00:02]} 2. Nf3 {[%emt 0:00:04]} d6 {[%emt 0:00:03]} 3. d4 {[%emt 0:00:04]} cxd4 {[%emt 0:00:03]} 4. Nxd4 {[%emt 0:00:04]} Nf6 {[%emt 0:00:04]} 5. Nc3 {[%emt 0:00:04]} a6 {[%emt 0:00:02]} 6. Qd3 {[%emt 0:00:03] B90: Sicilian Najdorf: Unusual White 6th moves, 6 Be3 Ng4 and 6 Be3 e5.} Nbd7 {[%emt 0:04:00]} 7. Be2 {[%emt 0:00:58]} Nc5 {[%emt 0:15:14]} 8. Qe3 {[%emt 0:01:46] White has an edge.} e5 {[%emt 0:02:30]} 9. Nb3 {[%emt 0:01:26]} Nxb3 {[%emt 0:13:07]} 10. axb3 {[%emt 0:00:08]} Be7 {[%emt 0:00:35]} 11. O-O {[%emt 0:06:53]} O-O {[%emt 0:01:53] [#]} 12. f4 $146 {[%emt 0:01:12]} ({Predecessor:} 12. Rd1 Be6 13. Bc4 Rc8 14. Bxe6 fxe6 15. Qh3 Qd7 16. Ra5 b5 17. b4 Rc6 18. Bg5 {0-1 (39) Tsydypov,Z (2526)-Perez Ponsa,F (2561) Chess.com INT 2021}) 12... exf4 {[%emt 0:07:44]} 13. Qxf4 {[%emt 0:00:10]} Be6 {[%emt 0:00:49]} 14. Be3 {[%emt 0:06:05]} Qc7 {[%emt 0:02:51]} 15. Qg3 {[%emt 0:08:48]} Nd7 {[%emt 0:12:13]} 16. Bh6 {[%emt 0:11:07][%csl Gh6][%cal Rg3g7]} Qc5+ {[%emt 0:00:20]} 17. Kh1 {[%emt 0:00:04][%csl Gh6][%cal Rg3g7] Really sharp!} Qe5 {[%emt 0:00:18] ...Qxg3 is the strong threat.} 18. Bf4 {[%emt 0:00:10]} Qc5 {[%emt 0:00:41]} 19. Nd5 {[%emt 0:24:40]} Bxd5 {[%emt 0:03:44]} 20. exd5 {[%emt 0:02:25]} Ne5 {[%emt 0:01:18]} 21. c4 {[%emt 0:03:13]} Rae8 {[%emt 0:04:53]} 22. Be3 {[%emt 0:02:33]} Qc7 {[%emt 0:05:10]} 23. Bd4 {[%emt 0:01:12]} a5 {[%emt 0:11:08]} 24. Qc3 {[%emt 0:06:08]} b6 {[%emt 0:02:41]} 25. b4 {[%emt 0:00:55]} axb4 {[%emt 0:01:08]} 26. Qxb4 {[%emt 0:00:06]} Nd7 {[%emt 0:00:21]} 27. Qd2 {[%emt 0:06:22]} (27. Bd3 {is more complex.} g6 28. Qc3 Bg5 29. Bc2) 27... Bf6 {[%emt 0:01:53]} 28. Bg1 {[%emt 0:01:22]} Be5 {[%emt 0:01:55]} 29. Ra3 {[%emt 0:01:20]} Ra8 {[%emt 0:00:32]} 30. Rh3 {[%emt 0:02:05]} (30. Rfa1 $5 {[%cal Ra3a8]} Qb7 31. Bg4 $14) 30... f5 {[%emt 0:00:24]} 31. b4 {[%emt 0:02:47]} g6 {[%emt 0:00:56]} 32. Rc1 {[%emt 0:03:44]} Ra4 {[%emt 0:01:34]} 33. Bd1 {[%emt 0:01:27]} Ra6 {[%emt 0:00:03]} 34. Bb3 {[%emt 0:00:10][%cal Oc4c5]} Rfa8 {[%emt 0:00:34]} 35. Rf3 {[%emt 0:03:00]} ({Better is} 35. c5 $11) 35... Ra1 {[%emt 0:01:08]} 36. Rff1 {[%emt 0:00:05]} Rxc1 {[%emt 0:00:57]} 37. Rxc1 {[%emt 0:00:02]} Ra3 {[%emt 0:00:15]} 38. Qd1 {[%emt 0:01:09][%cal Oc4c5]} Bf4 {[%emt 0:05:24]} (38... Qd8 $15 {feels stronger.} 39. g3 Qf8) 39. Ra1 $11 {[%emt 0:03:25]} Qa7 {[%emt 0:00:05]} 40. Rxa3 {[%emt 0:00:10]} Qxa3 {[%emt 0:00:03]} 41. Ba4 {[%emt 0:30:21]} Nf6 {[%emt 0:06:16]} 42. c5 {[%emt 0:00:00][%cal Bc4c5,Bc5b6,Bb6b7][%mdl 32]} Qxb4 {[%emt 0:03:42][%mdl 8192] Black is on the road to losing.} (42... bxc5 $11 43. bxc5 dxc5) 43. cxb6 $18 {[%emt 0:00:00]} Ne4 {[%emt 0:03:37]} 44. Qd4 {[%emt 0:00:00]} Qb1 {[%emt 0:02:10] [#]} 45. Bc2 $1 {[%emt 0:00:00][%mdl 512]} Qxc2 {[%emt 0:07:13]} 46. b7 {[%emt 0:00:00]} Qb1 {[%emt 0:00:03]} 47. Qa7 {[%emt 0:00:00]} Nf2+ {[%emt 0:00:02]} 48. Qxf2 {[%emt 0:00:00] White threatens Qa7 and mate.} Qxb7 {[%emt 0:01:17] Strongly threatening ...Be5.} 49. Qxf4 {[%emt 0:00:00]} Qxd5 {[%emt 0:00:06]} 50. Bd4 {[%emt 0:00:00] Prevents Qe5.} Kf7 {[%emt 0:01:48]} 51. Qh4 {[%emt 0:00:00]} Ke6 {[%emt 0:00:07]} 52. h3 {[%emt 0:00:00][%cal Bh2h3,Bh3h4][%mdl 32]} Qe4 {[%emt 0:02:37]} 53. Qf6+ {[%emt 0:00:00]} Kd5 {[%emt 0:00:09]} (53... Kd7 $142 54. Qf7+ Qe7) 54. Bf2 {[%emt 0:00:00]} f4 {[%emt 0:01:40]} 55. Kg1 {[%emt 0:00:00]} h5 {[%emt 0:03:36]} (55... Qb1+ $142 56. Kh2 Qf5) 56. h4 {[%emt 0:00:50]} Qb1+ {[%emt 0:00:07]} 57. Kh2 {[%emt 0:00:05]} Qe4 {[%emt 0:00:05]} 58. Qg7 {[%emt 0:01:21]} Kc6 {[%emt 0:01:14]} 59. Qa7 {[%emt 0:02:09] Threatening mate with Qa8+.} Kd5 {[%emt 0:01:09]} 60. Qa2+ {[%emt 0:01:16]} Ke5 {[%emt 0:00:20]} 61. Kg1 {[%emt 0:00:23]} Kf5 {[%emt 0:02:09]} 62. Qb3 {[%emt 0:01:02]} Kf6 {[%emt 0:00:35]} 63. Kf1 {[%emt 0:01:33]} Ke7 {[%emt 0:01:47]} (63... d5 {is a better defense.} 64. Qc3+ Ke6) 64. Be1 {[%emt 0:00:25]} Kf6 {[%emt 0:00:32]} 65. Bd2 {[%emt 0:01:28]} Kf5 {[%emt 0:00:22]} 66. Qh3+ {[%emt 0:01:33]} Ke5 $2 {[%emt 0:00:32]} (66... Kf6 $18 67. Qc3+ Kf7) 67. Bc3+ {[%emt 0:02:17] White mates.} Kd5 {[%emt 0:00:03] [#]} 68. Qf3 $1 {[%emt 0:00:03]} Qxf3+ {[%emt 0:00:04]} 69. gxf3 {[%emt 0:00:03] KB-KP} Ke6 {[%emt 0:00:03]} 70. Ba5 {[%emt 0:00:09]} g5 {[%emt 0:00:25]} 71. hxg5 {[%emt 0:00:04]} Kf5 {[%emt 0:00:07]} 72. Bd8 {[%emt 0:00:07]} d5 {[%emt 0:01:12]} 73. Bf6 {[%emt 0:00:05]} Kg6 {[%emt 0:00:38]} 74. Kg2 {[%emt 0:00:08]} h4 {[%emt 0:00:09]} 75. Kh2 {[%emt 0:00:05]} d4 {Weighted Error Value: White=0.12 (very precise) /Black=0.21 (precise)} 1-0

[Event "26th Womens ECCC 2022"]
[Site "Mayrhofen"]
[Date "2022.10.08"]
[Round "6.18"]
[White "Belenkaya, Dina"]
[Black "Wagner, Dinara"]
[Result "1/2-1/2"]
[ECO "B51"]
[WhiteElo "2263"]
[BlackElo "2390"]
[Annotator "TA"]
[PlyCount "108"]
[EventDate "2022.10.03"]
[EventType "team-tourn"]
[EventCountry "AUT"]
[SourceTitle "playchess.com"]
[Source "ChessBase"]
[SourceQuality "1"]
[TimeControl "40/5400+30:1800+30"]

{[%evp 13,108,8,0,-6,15,29,35,22,14,7,54,53,45,-5,-12,-6,-1,-1,-1,-1,-1,-1,-1,-1,-1,-8,0,0,0,0,0,0,0,-8,-8,-8,0,-12,0,-8,-3,-10,-10,-40,-46,-63,-77,-50,-46,-31,-44,-144,-124,-198,-141,-231,-241,-248,-231,-233,-230,-230,-207,-296,-291,-308,-79,-78,-83,-84,-80,-110,0,0,4,8,8,8,8,8,8,8,8,8,8,3,3,0,0,0,0,0,0,0,0,0,8]} 1. e4 {[%emt 0:00:26]} c5 {[%emt 0:00:05]} 2. Nf3 {[%emt 0:00:12]} d6 {[%emt 0:00:06]} 3. Bb5+ {[%emt 0:00:21]} Nd7 {[%emt 0:00:10]} 4. O-O {[%emt 0:00:48]} a6 {[%emt 0:00:13]} 5. Bxd7+ {[%emt 0:00:29]} Bxd7 {[%emt 0:00:05]} 6. d4 {[%emt 0:00:12]} cxd4 {[%emt 0:00:06]} 7. Qxd4 {[%emt 0:00:17]} Nf6 {[%emt 0:00:07]} 8. a4 {[%emt 0:02:28] B51: Sicilian: Moscow Variation (3 Bb5+) without 3...Bd7.} e5 {[%emt 0:04:53]} 9. Qd3 {[%emt 0:00:32]} Rc8 {[%emt 0:00:07] [#]} 10. Bg5 $146 {[%emt 0:04:34] White is slightly better.} ({Predecessor:} 10. c4 Be7 11. Nc3 O-O 12. h3 h6 13. Be3 Be6 14. b3 Qc7 15. Ne1 Rfd8 16. Nc2 {1-0 (36) Petrova,I (2077)-Mohammad Fahad,R (2319) Chess.com INT 2020}) 10... Be6 {[%emt 0:06:56]} 11. Rd1 {[%emt 0:05:27]} Bc4 {[%emt 0:21:10]} (11... Be7 $11) 12. Qe3 $14 {[%emt 0:00:52]} Ng4 {[%emt 0:00:58]} 13. Bxd8 {[%emt 0:12:45]} (13. Qe1 $14 Qb6 14. b3) 13... Nxe3 $11 {[%emt 0:02:09]} 14. fxe3 {[%emt 0:00:08] Strongly threatening Ba5.} Rxd8 {[%emt 0:00:37]} 15. b3 {[%emt 0:06:46]} Be6 {[%emt 0:02:42]} 16. c4 {[%emt 0:00:29]} Be7 {[%emt 0:11:23]} 17. Nc3 {[%emt 0:00:38]} Rc8 {[%emt 0:00:24]} 18. Nd5 {[%emt 0:02:26]} Bd8 {[%emt 0:00:17]} 19. Nd2 {[%emt 0:03:24]} Bxd5 {[%emt 0:03:49]} 20. exd5 {[%emt 0:00:59]} f5 {[%emt 0:01:02]} 21. a5 {[%emt 0:03:34] Prevents Bb6.} b6 {[%emt 0:10:15]} 22. axb6 {[%emt 0:01:59]} Bxb6 {[%emt 0:00:04]} 23. Rxa6 {[%emt 0:05:28]} Bxe3+ {[%emt 0:00:09]} 24. Kf1 {[%emt 0:00:13]} Bc5 {[%emt 0:04:01]} 25. Nf3 {[%emt 0:21:55]} h6 {[%emt 0:14:51]} 26. Ne1 {[%emt 0:00:32]} Kd7 {[%emt 0:00:15] Threatening ...Ra8.} 27. Nd3 {[%emt 0:13:23]} Bd4 {[%emt 0:03:39]} 28. Nb4 {[%emt 0:10:16]} (28. Nf4 $5) 28... Ra8 {[%emt 0:08:39]} 29. Rxa8 {[%emt 0:00:17]} Rxa8 $15 {[%emt 0:00:03][%mdl 4096] Endgame KRB-KRN} 30. Nc2 {[%emt 0:00:19]} Bc3 {[%emt 0:02:32] Hoping for ...Ra2.} 31. Rd3 {[%emt 0:01:34]} Bb2 {[%emt 0:00:05]} 32. Ke2 {[%emt 0:01:58] [#]} ({Better is} 32. Rf3 $15) 32... e4 $1 $17 {[%emt 0:00:23]} 33. Rd1 {[%emt 0:00:15]} (33. Re3 $17 {only move.}) 33... Ra2 {[%emt 0:01:22]} ({Black should try} 33... Be5 $19 {aiming for ...Ra2.} 34. b4 Ra2) 34. Kd2 {[%emt 0:00:42]} (34. Nb4 $17 Ra3 35. Nc2 Rxb3 36. Rb1) 34... Be5 $19 {[%emt 0:01:52]} 35. g3 {[%emt 0:00:01]} f4 {[%emt 0:01:16]} 36. gxf4 {[%emt 0:01:14]} Bxf4+ {[%emt 0:00:02]} 37. Kc3 {[%emt 0:00:02]} Bxh2 {[%emt 0:00:54]} 38. Re1 {[%emt 0:00:09]} (38. Rh1 $142 Be5+ 39. Kd2) 38... Be5+ {[%emt 0:00:22]} 39. Kd2 {[%emt 0:00:10]} e3+ {[%emt 0:01:22]} (39... g5 $19 {has better winning chances.} 40. Rxe4 h5) 40. Kd3 $17 {[%emt 0:00:02]} Rb2 {[%emt 0:00:22]} 41. b4 {[%emt 0:32:02][%cal Bb3b4,Bb4c5,Bc5c6][%mdl 32]} h5 {[%emt 0:09:06]} 42. c5 {[%emt 0:00:00] [#]} dxc5 {[%emt 0:05:58]} (42... Rb3+ $1 $17 43. Ke2 (43. Ke4 h4 $17) 43... Kc7) 43. bxc5 $11 {[%emt 0:00:00] The position is equal.} Bg3 {[%emt 0:08:07]} 44. Rxe3 {[%emt 0:00:00] And now c6+ would win.} Rb3+ {[%emt 0:00:02]} 45. Ke4 {[%emt 0:00:00]} Rxe3+ {[%emt 0:00:02]} 46. Nxe3 {[%emt 0:00:00] KB-KN} Bf2 {[%emt 0:03:12]} 47. c6+ {[%emt 0:00:00]} Kc7 {[%emt 0:00:01]} 48. Nf5 {[%emt 0:00:00]} g6 {[%emt 0:00:47]} 49. Ne7 {[%emt 0:00:00]} g5 {[%emt 0:02:24]} 50. Ke5 {[%emt 0:00:00] Threatening mate with d6+.} Bg3+ {[%emt 0:00:54]} 51. Kf5 {[%emt 0:00:00]} h4 {[%emt 0:00:44] Threatens to win with ...h3.} 52. Kg4 {[%emt 0:01:09]} Kd6 {[%emt 0:00:29]} 53. Nf5+ {[%emt 0:01:34]} Kxd5 {[%emt 0:00:04]} 54. Nxg3 {[%emt 0:00:22]} Kxc6 {[%emt 0:00:03] White happily takes the draw.  Weighted Error Value: White=0.12 (very precise) /Black=0.17 (very precise)} 1/2-1/2